Cogmind - Beta 10.1 @@@ ROGUE MODE // 2020.10.01 @ 01:23:39 Player: HOTSOUP Result: Destroyed by S-10 Pest with Light Assault Rifle Performance ------------- Evolutions (0) 0 Regions Visited (1) 200 Robots Destroyed (3) 15 Value Destroyed (109) 109 Prototype IDs (0) 0 Alien Tech Used (0) 0 Bonus (0) 0 TOTAL SCORE: 324 Bonus ------- None Cogmind --------- Core Integrity 0/250 Matter 221/300 Energy 84/100 System Corruption 1% Temperature Cool (0) Movement Core (100) Ox1 Location -10/Materials Parts ------- > --- POWER (1) -------- (None) > --- PROPULSION (2) --- (None) > --- UTILITY (2) ------ Small Storage Unit > --- WEAPON (2) ------- (None) > --- INVENTORY (6) ---- Light Ion Engine Weight Redist. System Weight Redist. System Propulsion Shielding Peak State ------------ > --- POWER ------------ Light Ion Engine > --- PROPULSION ------- (None) > --- UTILITY ---------- Weight Redist. System Weight Redist. System > --- WEAPON ----------- EMP Blaster EMP Blaster > --- INVENTORY -------- Light Ion Engine Small Storage Unit [Rating: 9] Favorites ----------- Power Light Ion Engine Engine Light Ion Engine Propulsion None Utility Weight Redist. System Device Weight Redist. System Storage Small Storage Unit Weapon EMP Blaster Energy Gun Medium Laser Ballistic Gun Assault Rifle Launcher EMP Blaster Build | -11 -10 ------- Run | Scr Mat Slots Evolved . | . . Power . | . . Propulsion . | . . Utility . | . . Weapon . | . . Parts Attached 10 | 3 7 Power 1 | . 1 Engine 1 | . 1 Core . | . . Reactor . | . . Propulsion . | . . Treads . | . . Leg . | . . Wheel . | . . Hover . | . . Flight . | . . Utility 3 | . 3 Device 2 | . 2 Storage 1 | . 1 Processor . | . . Hackware . | . . Protection . | . . Artifact . | . . Weapon 6 | 3 3 Energy Gun 2 | 2 . Energy Cannon . | . . Ballistic Gun 1 | 1 . Ballistic Cannon . | . . Launcher 3 | . 3 Special Weapon . | . . Impact Weapon . | . . Slashing Weapon . | . . Piercing Weapon . | . . Special Melee Weapon . | . . Unidentified Prototypes . | . . Parts Lost 3 | . 3 Power 1 | . 1 Propulsion . | . . Utility 1 | . 1 Weapon 1 | . 1 Highest Loss Streak 3 | . 3 Average Slot Usage (%) 50 | . 50 Engine 10 | . 10 Device 15 | . 15 Storage 8 | . 8 Launcher 14 | . 14 Naked Turns 2 | . 2 Heaviest Build 11 | 4 11 Greatest Support 15 | 3 15 Greatest Overweight (x) 1 | 1 1 Average Overweight (x) . | . . Largest Inventory Capacity 6 | 4 6 Average Capacity 5 | 4 5 Most Carried 5 | 3 5 Average Carried 3 | . 3 Final Capacity 6 | 4 6 Final Carried 4 | 3 4 Class Distribution -------------------- 100% | Mutant Dominant Class ---------------- Mutant | -10/Materials Resources | -11 -10 ----------- Run | Scr Mat Matter Collected 230 | 230 . Remotely . | . . Salvage Created 118 | . 118 Parts 3 | . 3 Haulers Intercepted . | . . Recyclers Shooed . | . . Parts Field Recycled . | . . Retrieved Matter . | . . Parts Self-Destructed . | . . Prevented . | . . Kills | -11 -10 ------- Run | Scr Mat Combat Hostiles Destroyed 2 | . 2 AOE 2 | . 2 Classes Destroyed 2 | . 2 Worker 1 | . 1 Grunt 2 | . 2 Best Kill Streak 3 | . 3 Combat Bots Only 2 | . 2 Max Kills in Single Turn 3 | . 3 Gunslinging . | . . Exploded 2 | . 2 Melee . | . . Uniques/NPCs Destroyed . | . . Combat | -11 -10 -------- Run | Scr Mat Damage Taken 498 | . 498 Core 252 | . 252 Absorbed by Shields . | . . Core Remaining (%) 100 | 100 . Volleys Fired 7 | . 7 Largest 1 | . 1 Hottest 50 | . 50 Shots Fired 7 | . 7 Gun 1 | . 1 Cannon . | . . Launcher 6 | . 6 Special . | . . Kinetic . | . . Thermal 1 | . 1 Explosive . | . . Electromagnetic 6 | . 6 Robot Hit Streak 1 | . 1 Robot Miss Streak 1 | . 1 Penetration Max . | . . Secondary Targets . | . . Shots Hit Robots 1 | . 1 Core Hits 3 | . 3 Critical Hits . | . . Critical Kills . | . . Critical Parts Destroyed . | . . Melee Attacks . | . . Impact . | . . Slashing . | . . Piercing . | . . Sneak Attacks . | . . Combat Hostiles . | . . Follow-up Attacks . | . . Damage Inflicted 235 | . 235 Guns . | . . Cannons . | . . Explosions 235 | . 235 Melee . | . . Ramming . | . . Kinetic . | . . Thermal 101 | . 101 Explosive . | . . Electromagnetic 134 | . 134 Impact . | . . Slashing . | . . Piercing . | . . Highest Corruption 1 | . 1 Average Corruption 1 | . 1 Corruption Purged . | . . Overload Shots . | . . Overflow Damage . | . . Projectiles . | . . Explosions . | . . Melee . | . . Knockbacks . | . . Impact . | . . Kinetic . | . . Secondary . | . . Self-Inflicted Damage 33 | . 33 Shots 3 | . 3 Rammed . | . . Targets Rammed . | . . Kicked . | . . Crushed . | . . Highest Temperature . | . . Average Temperature . | . . Received Heat Transfer 6 | . 6 Siege Activations . | . . Robots Corrupted . | . . Combat Hostiles . | . . Parts Fried . | . . Impact Corruptions . | . . Robots Melted . | . . Combat Hostiles . | . . Parts Melted . | . . Heat Transferred 50 | . 50 Parts Sabotaged . | . . Parts Stolen . | . . Parts Stripped . | . . Power Chain Reactions . | . . Missiles Intercepted . | . . Alert | -11 -10 ------- Run | Scr Mat Peak Influence 150 | . 150 Initial . | . . Average 66 | . 77 Maximum Alert Level . | . . Low Security (%) 100 | 100 100 Level 1 . | . . Level 2 . | . . Level 3 . | . . Level 4 . | . . Level 5 . | . . High Security . | . . Max Security . | . . Squads Dispatched 1 | . 1 Investigation . | . . Extermination . | . . Reinforcement 1 | . 1 Assault . | . . Garrison . | . . Intercept . | . . Construction Impeded . | . . Haulers Reinforced . | . . Stealth | -11 -10 --------- Run | Scr Mat Distress Signals 1 | . 1 Communications Jammed . | . . Distress Signals . | . . Times Spotted 15 | . 15 Peak Tracking Total 6 | . 6 Tactical Retreats 4 | . 4 Traps | -11 -10 ------- Run | Scr Mat Traps Triggered . | . . Indirectly . | . . Trap Hack Attempts . | . . Triggered . | . . Disarmed . | . . Reprogrammed . | . . Reused . | . . Traps Extracted . | . . Installed . | . . Triggered . | . . Machines | -11 -10 ---------- Run | Scr Mat Machines Disabled 4 | . 4 Max in Single Turn 3 | . 3 Machines Sabotaged . | . . Garrisons Compromised . | . . Overloaded Fab Kills . | . . Fab Network Shutdowns . | . . Hacking | -11 -10 --------- Run | Scr Mat Machines Accessed 1 | . 1 Terminals 1 | . 1 Fabricators . | . . Repair Stations . | . . Recycling Units . | . . Scanalyzers . | . . Garrison Access . | . . Total Hacks 4 | . 4 Successful 2 | . 2 Failed 2 | . 2 Catastrophic . | . . Database Lockouts . | . . Manual 4 | . 4 Terminals 4 | . 4 Fabricators . | . . Repair Stations . | . . Recycling Units . | . . Scanalyzers . | . . Garrison Access . | . . Terminal Hacks . | . . Fabricator Hacks . | . . Repair Station Hacks . | . . Recycling Unit Hacks . | . . Scanalyzer . | . . Garrison Access Hacks . | . . Unauthorized Hacks 2 | . 2 Terminals 2 | . 2 Track 1 | . 1 Botnet 1 | . 1 Fabricators . | . . Repair Stations . | . . Recycling Units . | . . Scanalyzers . | . . Garrison Access . | . . Data Cores Recovered . | . . Used . | . . Hacking Detections 1 | . 1 Full Trace Events . | . . Feedback Events . | . . Feedback Blocked . | . . Robot Schematics Acquired . | . . Robots Built . | . . Matter . | . . Time . | . . Total Robot Build Rating . | . . Part Schematics Acquired . | . . Parts Built . | . . Matter . | . . Time . | . . Total Part Build Rating . | . . Parts Repaired . | . . Time . | . . Parts Recycled . | . . Recycled Matter . | . . Retrieved Matter . | . . Retrieved Components . | . . Parts Scanalyzed . | . . Part Schematics Acquired . | . . Parts Damaged . | . . Bothacking | -11 -10 ------------ Run | Scr Mat Used RIF Installer . | . . Robots Hacked . | . . Non-combat . | . . Combat . | . . Robot Hacks Applied . | . . Relay Couplers Released . | . . Robots Rewired . | . . Allies Hacked . | . . Hacks Repelled . | . . Allies | -11 -10 -------- Run | Scr Mat Total Allies . | . . Largest Group . | . . Highest-Rated Group . | . . Highest-Rated Ally . | . . Total Orders . | . . Ally Attacks . | . . Total Damage . | . . Kills . | . . Allies Corrupted . | . . Allies Melted . | . . Intel | -11 -10 ------- Run | Scr Mat Robot Analysis Total . | . . Derelict Logs Recovered . | . . Drone Launches . | . . Drone Recoveries . | . . Exploration | -11 -10 ------------- Run | Scr Mat Turns Passed 266 | 39 227 Spaces Moved 258 | 55 203 Core 258 | 55 203 Treads . | . . Legs . | . . Wheels . | . . Hover . | . . Flight . | . . Fastest Speed 50 | 50 50 Average Speed 63 | 56 66 Slowest Speed 100 | 100 100 Overloaded Moves . | . . Propulsion Burnouts . | . . Robots Hopped . | . . Cave-ins Triggered . | . . Exploration Rate (%) 14 | 3 26 Regions Visited 1 Branch Regions . Pre-discovered Areas . | . . Known Exits Taken . | . . Unknown Exits Taken 1 | 1 . Scrap Searched . | . . Spaces Dug . | . . Terrain Destroyed 42 | . 42 Melee . | . . Projectile . | . . AOE 42 | . 42 Terrain Rammed . | . . Walls Destroyed . | . . Machines Disabled . | . . Actions | -11 -10 --------- Run | Scr Mat Total 351 | 62 289 Wait 65 | . 65 Move 257 | 54 203 Hop . | . . Pick Up 6 | 3 3 Fast Attach 7 | 3 4 Attach 3 | . 3 Detach 1 | . 1 Swap . | . . Drop 5 | 2 3 Fire 7 | . 7 Melee . | . . Ram . | . . Kick . | . . Crush . | . . Escape Stasis . | . . Rewire . | . . Trap . | . . Miscellaneous . | . . Route ------- -11/Scrapyard -10/Materials History --------- Turn | Location | Event 4 | -11/Scrapyard | Discovered new exit (range 13) 40 | -11/Scrapyard | Entered Materials 252 | -10/Materials | Core integrity fell below 50% 261 | -10/Materials | Core integrity fell below 20% 267 | -10/Materials | Destroyed by S-10 Pest with Light Assault Rifle Last Messages --------------- 00151_ K-01 Serf cleans the Fusion Modulator. 00176_ Door malfunctions. 00176_ Fusion Modulator explodes. 00176_ K-01 Serf destroyed. 00176_ G-34 Mercenary destroyed. 00176_ Door malfunctions. 00176_ G-34 Mercenary destroyed. 00176_ Fusion Modulator explodes. 00176_ Integration Channel disabled. 00188_ U-05 Engineer lays Concrete. 00190_ U-05 Engineer builds a Door. 00190_ U-05 Engineer builds a Wall. 00210_ Emergency Access malfunctions. 00211_ K-01 Serf collects debris. 00230_ Lgt. Ion Engine destroyed. 00237_ K-01 Serf collects debris. 00246_ EMP Blaster destroyed. 00257_ Weight Redist. System destroyed. 00263_ S-10 Pest IFF system glitched. 00263_ U-05 Engineer destroyed. Map ----- +----------------------------------------------------+ | ?????????????????????????????????????????????????? | | ?????????????????????????????????????????????????? | | ????# ################???????????????????????????? | | ???# T #???????????????????????????? | | ???# #???????????????????????????? | | ????????""" """ #???????????????????????????? | | ?????# """ """ #???????????????????????????? | | ?????# %"" """ ###### ????????????? | | ?????# k ????????????? | | ?????# #######+#???????????????????? | | ???? ^ #???????????????????????????? | | ???? #???????????????????????????? | | ???? #???????????????????????????? | | ?????## #""T""####w #???????????????????????????? | | ??????#?#"""""???# r #?? ######????????? | | ??????????###????# #?? / #????????? | | ?????????????????# ################## #??????### | | ?????????????????# #??# #??####""" | | ?????????????##### #??# #??# | | ?????????????#[[ """ #??# #### | | ?????????????#[[ ####+### """ #??# ## # | | ?????????????# ## # """ ####/##"# | | ?????????????# ## * # """ # # | | ?????????????# ## # # # | | ?????????????#]] ## = # su!| # # | | ?????????????###### /@ s*%= # # | | ??????????????????# # !s= #! #+#/## | | ??????????????????# # #### # + | | ??????????????????####### #??# # " # ] " | | ????????????????????????# #??# # " ##""""# | | ????????????????????????# #??# # """ # | | ????????????????????????#####??# # " # """ | | ???????????????????????????????# + # """ | | ???????????????????????????????# ######### """ | | ???????????????????????????????##+##???????# | | ??????????????????????????????? ???????# """ | | ????????????????????????????? """ """ ?????# """ | | ???????????????????????????# """"""""" #???# ""? | | ???????????????????????????# """"" #???# ?? | | ???????????????????????????# #???#####?? | | ???????????????????????????# #?????????? | | ???????????????????????????# ?#?????????? | | ???????????????????????????#########?????????????? | | | | | | | | | | | | | | | +----------------------------------------------------+ Best States ------------- Heat Dissipation 25 Energy Generation 10 Energy Capacity 125 Matter Stores 300 Matter Capacity 300 Sight Range 16 Terrain Scan Density 10 Additional Mass Support 12 Evasion (%) 50 Item Schematics ----------------- None Robot Schematics ------------------ None Fabricated ------------ Nothing Alien Tech Used ----------------- None Achievements -------------- None Challenges ------------ None Game ------ Seed GravityChargeProtection Manual? 0 Play Time 00:08:55 Cumulative 77.6 hours Start 2020.10.01 @ 01:18:53 End 2020.10.01 @ 01:23:39 Sessions 1 Manual Loads 0 Difficulty Rogue Special Mode None Game No. 110 Rogue 86 Adventurer 22 Explorer 2 Win Type - Total 1 Types 1/0/0/0/0/0/0/0/0 Lore% 43 Gallery% 47 Achievement% 39 Wizard Run 0 Options --------- ASCII 0 Keyboard 0 Movement Numpad Keybinds 0 Fullscreen 1 Font 14/SmallcapsGlow Map View 84x54 Tactical HUD 1 Map Filters NONE Filters NONE Steam 1 RUN: ad090631-9c83-40c1-8682-5fdf349e8a8e